bitfinex/quotes_ETHUSD_20250802
["timestamp","ask_amount","ask_price","bid_price","bid_amount"]
[1754132537241,4.364,3499.6,3499.4,0.9077]
[1754132537570,4.364,3499.9,3499.5,0.4589]
[1754132537877,4.364,3499.9,3499.5,0.6021]
[1754132538375,4.844,3499.9,3499.5,1.14023737]
[1754132538579,5.3059,3499.9,3499.5,1.14023737]
[1754132538883,0.48,3499.8,3499.5,1.14023737]
[1754132539676,1.86708705,3500.6,3499.5,1.14023737]
[1754132539868,0.48,3500.2,3499.6,0.4589]
[1754132540065,4.363,3500.1,3500.0,0.1432]
[1754132540375,4.363,3500.1,3499.6,0.2954335]
[1754132540677,0.48,3500.0,3499.7,0.1432]
[1754132541178,4.363,3500.1,3499.7,0.1432]
[1754132541384,0.9419,3500.0,3499.7,0.1432]
[1754132541746,0.48,3500.0,3499.7,0.1432]
[1754132542050,4.364,3500.1,3499.8,0.4792]
[1754132542251,4.364,3500.1,3499.7,0.5915]
[1754132542449,4.8539,3500.1,3499.7,0.1432]
[1754132542975,4.364,3500.1,3499.7,0.6224]
[1754132544270,0.9473,3500.0,3499.7,0.1432]
[1754132544656,0.9473,3499.9,3499.7,0.1432]
[1754132545082,0.9473,3499.8,3499.2,3.0]
[1754132545396,0.9473,3499.8,3499.6,0.1432]
[1754132545397,0.4899,3499.7,3499.6,0.1432]
[1754132545748,0.9473,3499.7,3499.6,0.1432]
[1754132546146,0.9473,3499.7,3499.1,0.4792]
[1754132546494,4.364,3500.1,3499.5,0.1432]
[1754132547097,0.4899,3500.0,3499.5,0.1432]
[1754132547735,0.4574,3499.9,3499.5,0.1432]
[1754132548051,0.9473,3499.8,3499.5,0.1432]
[1754132548497,0.4574,3499.8,3499.5,0.1432]
[1754132548795,0.4899,3499.7,3499.5,0.1432]
[1754132550998,0.4899,3499.7,3499.5,5.63954658]
[1754132552252,0.4899,3499.7,3499.5,0.1432]
[1754132552449,5.3093,3499.6,3499.1,0.1432]
[1754132552654,4.362,3499.5,3498.9,0.1432]
[1754132552854,5.3093,3499.5,3498.9,0.70715466]
[1754132553089,0.9473,3499.4,3498.9,0.70715466]
[1754132553391,0.9473,3499.3,3498.9,0.70715466]
[1754132553691,0.9473,3499.2,3498.9,0.70715466]
[1754132553886,0.9473,3499.1,3498.9,0.70715466]
[1754132554966,0.9473,3499.1,3498.9,0.1432]
[1754132555674,0.4899,3499.0,3498.4,11.01184779]
[1754132555893,0.9473,3499.0,3498.6,0.1432]
[1754132556075,4.362,3499.5,3498.6,0.1432]
[1754132556280,0.9473,3498.9,3498.6,0.1432]
[1754132556501,5.3093,3498.8,3497.9,8.01184779]
[1754132556702,0.9473,3498.7,3497.6,0.4792]
[1754132556904,0.9473,3498.6,3498.0,0.1432]
[1754132557109,0.9473,3498.5,3498.0,0.1432]
[1754132557295,0.9473,3498.4,3497.6,0.4792]
[1754132557470,0.9473,3498.3,3497.9,0.1432]
[1754132557804,4.362,3498.2,3497.9,0.1432]
[1754132558163,0.9473,3498.1,3497.9,0.1432]
[1754132558368,0.9473,3498.1,3497.3,0.9295]
[1754132558603,0.9473,3498.1,3497.6,0.1432]
[1754132559105,4.362,3498.2,3497.6,0.1432]
[1754132559282,0.9473,3498.1,3497.5,0.1432]
[1754132559468,4.362,3498.2,3497.5,0.1432]
[1754132559670,0.9473,3498.0,3497.5,0.1432]
[1754132559864,0.9473,3497.9,3497.5,0.1432]
[1754132560275,4.362,3498.2,3497.5,0.1432]
[1754132560476,0.4899,3497.8,3497.5,0.1432]
[1754132560703,0.4574,3497.8,3497.4,0.1432]
[1754132560908,0.4899,3497.7,3497.4,0.1432]
[1754132563723,0.4899,3497.7,3497.6,0.002]
[1754132565420,4.363,3497.9,3497.6,0.002]
[1754132565800,4.8529,3497.9,3497.6,0.002]
[1754132565991,4.363,3497.9,3497.7,0.4792]
[1754132566188,4.363,3497.9,3497.7,1.38765478]
[1754132566414,4.363,3497.9,3497.7,0.90845478]
[1754132568898,4.363,3498.0,3497.8,0.4792]
[1754132569631,4.363,3498.0,3497.7,0.90845478]
[1754132569814,4.363,3498.0,3497.8,0.4792]
[1754132570343,4.363,3498.2,3497.9,0.9275]
[1754132570547,4.363,3498.2,3498.1,8.01184779]
[1754132570749,4.363,3498.2,3497.9,8.63424779]
[1754132570915,4.363,3498.2,3497.9,8.15504779]
[1754132571246,4.8529,3498.2,3497.9,8.15504779]
[1754132571821,4.363,3498.2,3497.9,8.15504779]
[1754132572030,0.9469,3498.1,3497.6,0.002]
[1754132572420,0.9469,3498.0,3497.6,0.002]
[1754132572812,0.9469,3497.9,3497.6,0.002]
[1754132573336,0.9469,3497.8,3497.6,0.002]
[1754132573715,4.363,3498.2,3497.6,0.002]
[1754132573716,0.9469,3497.7,3497.6,0.002]
[1754132574371,4.363,3498.2,3497.6,0.002]
[1754132574668,4.363,3498.2,3497.6,0.9252]
[1754132574837,4.363,3498.2,3497.9,5.50136395]
[1754132575167,4.8289,3498.2,3497.9,5.50136395]
[1754132575401,0.9469,3498.1,3497.9,5.50136395]
[1754132575675,4.363,3498.2,3497.9,5.50136395]
[1754132575887,4.844,3498.2,3497.9,5.50136395]
[1754132576288,4.363,3498.2,3497.9,5.50136395]
[1754132576792,4.363,3498.1,3497.9,6.14402035]
[1754132576958,4.363,3498.1,3498.0,5.50136395]
[1754132577135,4.363,3498.1,3498.0,6.42456395]
[1754132577481,4.363,3498.2,3498.0,6.42456395]
[1754132577640,4.363,3498.3,3498.1,5.50136395]
[1754132577974,4.363,3498.3,3498.2,5.50136395]
[1754132578860,4.363,3498.3,3498.2,0.48]
[1754132579057,4.363,3498.3,3497.9,8.63747503]
[1754132579250,0.481,3498.7,3498.0,0.48]
[1754132579541,4.363,3498.6,3498.0,1.7869475]
[1754132580880,4.363,3498.6,3498.0,1.81553526]
[1754132581700,4.363,3498.6,3498.4,8.01427503]
[1754132581884,4.363,3498.6,3498.5,0.9232]
[1754132582086,4.363,3499.1,3498.5,0.4432]
[1754132582277,4.363,3499.1,3498.6,0.8600675]
[1754132582595,4.363,3499.1,3498.7,0.48]
[1754132582794,4.363,3499.1,3498.8,0.48]
[1754132583964,4.844,3499.1,3498.7,0.1432]
[1754132584764,4.844,3499.1,3498.7,0.6232]
[1754132584966,4.844,3499.1,3498.7,1.61727425]
[1754132584967,4.363,3499.1,3498.7,1.61727425]
[1754132585806,4.844,3499.1,3498.7,1.61727425]
[1754132588316,4.363,3499.1,3498.7,1.13727425]
[1754132588616,4.363,3499.1,3498.8,0.9232]
[1754132589917,4.363,3499.1,3498.9,9.08067503]
[1754132590129,4.362,3499.5,3499.0,2.07673305]
[1754132590336,4.362,3499.5,3499.1,0.02857877]
[1754132590533,4.362,3499.5,3499.1,0.95177877]
[1754132590737,4.362,3499.5,3499.2,0.4432]
[1754132590903,4.362,3499.5,3499.1,0.02857877]
[1754132591239,0.001,3499.6,3499.4,0.1432]
[1754132591600,0.001,3499.6,3499.5,0.48]
[1754132592786,0.001,3499.6,3499.4,0.1432]
[1754132593015,0.9469,3499.5,3499.2,0.91963869]
[1754132593247,0.481,3499.5,3499.3,0.1432]
[1754132594136,0.001,3499.6,3499.3,0.1432]
[1754132594445,0.001,3499.6,3499.3,0.29748387]
[1754132594649,0.482,3499.6,3499.3,0.29748387]
[1754132594958,0.481,3499.5,3499.3,0.29748387]
[1754132595517,0.001,3499.6,3499.3,0.29748387]
[1754132595836,0.001,3499.6,3499.3,0.77748387]
[1754132596033,0.001,3499.6,3499.4,0.16971226]
[1754132596225,0.001,3499.6,3499.4,1.09291226]
[1754132596625,0.001,3499.6,3499.4,0.64971226]
[1754132596828,0.001,3499.6,3499.4,0.16971226]
[1754132597618,0.001,3499.6,3499.4,0.64971226]
[1754132597818,0.001,3499.6,3499.5,0.1712551]
[1754132600944,0.001,3499.6,3499.4,5.49683153]
[1754132601141,0.9479,3499.6,3499.4,5.49683153]
[1754132601358,0.481,3499.5,3499.4,5.49683153]
[1754132601869,0.9248,3499.5,3499.2,0.91963869]
[1754132602064,0.001,3499.6,3499.2,1.06283869]
[1754132602366,0.9248,3499.4,3499.2,1.06283869]
[1754132602571,0.4735,3499.4,3499.0,5.49683153]
[1754132602867,0.001,3499.6,3499.0,5.64003153]
[1754132603067,0.4523,3499.6,3499.3,5.49683153]
[1754132603271,0.001,3499.6,3499.3,5.49683153]
[1754132603572,0.001,3499.6,3499.3,5.98013153]
[1754132603742,0.4523,3499.6,3499.3,5.49683153]
[1754132603948,0.4513,3499.5,3499.3,5.49683153]
[1754132604332,0.4745,3499.6,3499.3,5.49683153]
[1754132604333,0.001,3499.6,3499.3,5.49683153]
[1754132605273,0.4513,3499.5,3499.0,0.1432]
[1754132605486,0.9248,3499.5,3499.1,5.49683153]
[1754132605690,0.4513,3499.5,3499.1,5.49683153]
[1754132605896,0.001,3499.6,3499.1,5.49683153]
[1754132606084,0.4523,3499.6,3499.4,5.49683153]
[1754132606670,0.001,3499.6,3499.5,0.9383]
[1754132606863,0.001,3499.6,3499.5,1.58181315]
[1754132608795,0.001,3499.6,3499.5,0.64351315]
[1754132608966,0.001,3499.6,3499.4,5.49683153]
[1754132609367,0.4523,3499.6,3499.4,5.49683153]
[1754132610685,0.4513,3499.5,3498.7,3.0]
[1754132610901,0.001,3499.6,3499.4,5.49683153]
[1754132611277,0.001,3499.6,3499.5,0.9383]
[1754132611470,0.001,3500.0,3499.5,4.76790866]
[1754132611804,0.001,3500.0,3499.9,5.49683153]
[1754132612192,0.001,3500.0,3499.9,6.57833153]
[1754132612860,0.001,3500.0,3499.9,9.55745128]
[1754132613064,0.001,3500.0,3499.9,13.91745128]
[1754132613261,0.001,3500.0,3499.9,15.30919641]
[1754132613505,0.001,3500.1,3499.9,15.30919641]
[1754132613689,4.36,3500.9,3500.0,0.96687142]
[1754132613999,4.36,3500.9,3500.5,8.47595128]
[1754132614198,4.36,3500.9,3500.6,0.9383]
[1754132614905,4.8113,3500.9,3500.4,0.6265]
[1754132615101,4.36,3500.9,3500.5,0.9383]
[1754132615287,4.36,3500.9,3500.6,0.4833]
[1754132615518,4.36,3500.9,3500.8,8.47595128]
[1754132615722,0.4513,3501.3,3500.8,8.95925128]
[1754132616039,4.36,3501.4,3500.9,0.9383]
[1754132616236,4.36,3501.4,3500.9,0.455]
[1754132616403,4.36,3501.4,3501.0,0.4833]
[1754132616604,4.8113,3501.4,3501.0,0.4833]
[1754132616799,4.36,3501.4,3501.3,8.47595128]
[1754132617131,0.009,3501.7,3501.3,10.26184641]
[1754132617308,0.009,3501.7,3501.4,1.0815]
[1754132617507,0.009,3501.7,3501.6,0.1424]
[1754132617706,0.009,3501.7,3501.6,1.61872464]
[1754132617912,0.009,3501.7,3501.6,2.55702464]
[1754132620742,0.009,3501.7,3501.6,2.10202464]
[1754132621036,0.009,3501.7,3501.6,1.61872464]
[1754132621242,0.9338,3501.7,3501.4,4.5022]
[1754132621940,0.9338,3501.7,3501.4,0.1432]
[1754132622102,0.9248,3501.6,3501.0,4.359]
[1754132622303,0.4513,3501.5,3501.1,0.1432]
[1754132622528,0.9248,3501.5,3501.1,0.1432]
[1754132622737,0.9248,3501.4,3501.1,0.1432]
[1754132622940,4.368,3501.7,3501.1,8.61915128]
[1754132622941,0.4513,3501.6,3501.1,8.61915128]
[1754132623159,0.4513,3501.6,3501.2,0.4833]
[1754132623535,4.368,3501.7,3501.1,9.07415128]
[1754132623536,0.9248,3501.5,3501.1,8.61915128]
[1754132623753,0.9248,3501.4,3501.1,8.61915128]
[1754132623965,4.368,3501.7,3501.1,8.61915128]
[1754132623966,0.9248,3501.3,3501.1,8.61915128]
[1754132625360,4.368,3501.7,3501.1,8.61915128]
[1754132625544,0.4513,3501.3,3500.7,7.8413]
[1754132625752,0.4513,3501.3,3500.8,0.895873]
[1754132626050,0.4513,3501.3,3500.9,0.4833]
[1754132627730,0.9248,3501.2,3500.8,0.86730811]
[1754132628068,0.4513,3501.1,3500.8,0.86730811]
[1754132629568,0.4735,3501.2,3500.8,0.86730811]
[1754132629765,0.4513,3501.3,3500.9,0.4833]
[1754132630072,0.4513,3501.5,3501.0,0.4833]
[1754132630281,0.001,3501.3,3501.0,0.4833]
[1754132630480,0.001,3501.3,3501.0,0.96671738]
[1754132630702,0.001,3501.3,3501.1,8.95925128]
[1754132630903,0.001,3501.3,3501.1,9.41425128]
[1754132631104,0.001,3501.3,3501.2,0.4833]
[1754132631504,0.001,3501.3,3501.1,8.93095128]
[1754132631671,0.001,3501.3,3501.1,9.41485128]
[1754132633502,0.001,3501.3,3501.1,8.47595128]
[1754132633704,0.4632,3501.3,3501.1,8.47595128]
[1754132633870,0.92,3501.2,3500.8,0.72410811]
[1754132634066,0.4578,3501.2,3500.8,0.86730811]
[1754132634303,0.4622,3501.1,3500.8,0.86730811]
[1754132634510,0.001,3501.3,3500.9,1.67012594]
[1754132634807,0.001,3501.3,3501.2,5.4906826]
[1754132635207,0.001,3501.3,3501.2,6.4037826]
[1754132635406,0.001,3501.3,3501.2,6.5469826]
[1754132636472,0.009,3501.7,3501.3,3.0]
[1754132636700,0.009,3501.7,3501.6,5.4906826]
[1754132636895,0.009,3501.7,3501.6,8.61072508]
[1754132637111,0.009,3501.7,3501.6,9.52382508]
[1754132639712,0.11942439,3502.4,3501.6,16.73842508]
[1754132639890,0.11942439,3502.4,3502.0,0.1424]
[1754132640414,0.11942439,3502.4,3501.9,4.4994]
[1754132640714,0.11942439,3502.4,3501.9,0.6263]
[1754132640892,0.11942439,3502.4,3502.0,0.9131]
[1754132642216,0.11942439,3502.4,3501.9,0.1424]
[1754132642421,0.58162439,3502.4,3501.9,1.52632374]
[1754132642584,0.11942439,3502.4,3502.0,0.9131]
[1754132646576,0.11942439,3502.4,3501.9,1.52632374]
[1754132646804,0.11942439,3502.4,3501.9,2.01022374]
[1754132647017,0.11942439,3502.4,3502.0,0.4839]
[1754132647316,0.11942439,3502.4,3502.0,1.02784237]
[1754132647896,0.11942439,3502.4,3502.0,1.45704237]
[1754132648499,0.11942439,3502.4,3502.0,9.92536745]
[1754132649223,0.11942439,3502.4,3502.0,9.49616745]
[1754132649637,0.11942439,3502.4,3502.0,9.92536745]
[1754132650121,0.11942439,3502.4,3502.0,10.06776745]
[1754132650321,0.11942439,3502.4,3502.0,14.42476745]
[1754132651032,0.11942439,3502.4,3502.0,17.42476745]
[1754132651796,0.11942439,3502.4,3502.1,3.0]
[1754132652011,0.11942439,3502.4,3502.2,1.88086912]
[1754132652220,0.11942439,3502.4,3502.0,0.68634237]
[1754132652221,0.11942439,3502.4,3502.3,0.1424]
[1754132652837,0.01942439,3502.4,3502.3,0.1424]
[1754132653140,0.93942439,3502.4,3502.3,0.1424]
[1754132654965,0.01942439,3502.4,3502.3,0.1424]
[1754132655113,0.01942439,3502.4,3502.3,0.6263]
[1754132655306,0.01942439,3502.4,3502.3,2.26781786]
[1754132655502,0.01942439,3502.4,3502.3,1.35471786]
[1754132656357,0.01942439,3502.4,3502.3,1.83861786]
[1754132656643,0.01942439,3502.4,3502.3,1.35471786]
[1754132656946,0.01942439,3502.4,3502.3,6.8417027]
[1754132657443,0.01942439,3502.4,3502.3,7.7548027]
[1754132658254,0.01942439,3502.4,3502.3,12.1108027]
[1754132660224,3.0,3504.1,3502.3,14.9684027]
[1754132660225,6.869,3503.6,3502.3,14.9684027]
[1754132660428,0.92,3503.5,3503.3,0.1424]
[1754132660828,0.92,3503.4,3503.3,0.1424]
[1754132661452,1.718,3504.4,3503.3,0.1424]
[1754132661651,0.4578,3504.2,3504.0,5.48698484]
[1754132661855,3.0,3504.6,3504.0,5.48698484]
[1754132662066,0.4385,3504.1,3504.0,5.48698484]
[1754132662230,0.493,3504.1,3504.0,5.48698484]
[1754132662562,0.4385,3504.3,3504.0,5.48698484]
[1754132662860,0.9315,3504.3,3504.0,5.48698484]
[1754132663058,4.356,3504.7,3503.9,0.1424]
[1754132663059,0.9315,3504.2,3503.9,0.1424]
[1754132663353,7.01873558,3505.5,3504.0,5.48698484]
[1754132663354,30.0,3505.4,3504.0,5.48698484]
[1754132663658,0.493,3504.6,3504.1,0.1424]
[1754132663961,0.4385,3504.5,3504.1,0.1424]
[1754132664334,0.9315,3504.4,3504.1,0.1424]
[1754132664535,0.9315,3504.4,3503.7,5.48698484]
[1754132664772,0.9315,3504.3,3504.0,0.1424]
[1754132665271,0.9315,3504.2,3504.0,0.1424]
[1754132665489,0.9315,3504.2,3503.3,3.0]
[1754132665781,0.9315,3504.2,3501.3,2.85604683]
[1754132665782,2.268,3504.0,3502.4,1.99184027]
[1754132665964,6.081,3503.9,3502.8,0.1424]
[1754132666169,30.9315,3503.8,3502.8,0.1424]
[1754132666349,0.55,3503.5,3502.0,0.963]
[1754132666537,30.0,3503.4,3502.4,0.1424]
[1754132666733,0.4385,3503.3,3502.4,0.1424]
[1754132667061,0.9315,3503.3,3502.4,0.1424]
[1754132667370,0.9315,3503.2,3502.4,0.1424]
[1754132667940,0.9315,3503.2,3502.5,0.495]
[1754132668245,0.9315,3503.2,3502.6,0.95656575]
[1754132668445,0.9315,3503.2,3502.8,0.1424]
[1754132668669,0.493,3503.1,3502.8,0.1424]
[1754132669036,0.9315,3503.0,3502.2,3.0]
[1754132669384,0.9315,3503.0,3502.5,0.1424]
[1754132669549,0.55,3503.5,3502.1,0.495]
[1754132669750,0.9315,3502.9,3502.4,0.1424]
[1754132670085,0.9315,3502.8,3502.4,0.1424]
[1754132670598,3.0,3503.8,3502.4,0.1424]
[1754132670599,0.9315,3502.7,3502.4,0.1424]
[1754132671087,0.493,3502.7,3502.4,0.1424]
[1754132671389,0.4385,3503.0,3502.5,0.495]
[1754132671589,0.4385,3503.3,3502.5,1.9224211]
[1754132671798,0.4385,3503.3,3502.7,0.1424]
[1754132672458,0.9315,3503.3,3502.7,0.1424]
[1754132675964,0.9315,3503.3,3502.7,0.1709494]
[1754132676166,0.4385,3503.7,3503.2,0.1424]
[1754132676371,4.37,3503.8,3503.2,0.6374]
[1754132676584,4.37,3503.8,3503.2,1.1054]
[1754132676807,4.37,3503.8,3503.2,1.51594]
[1754132677671,0.4385,3504.0,3503.3,0.495]
[1754132677672,4.371,3504.0,3503.3,0.495]
[1754132677994,4.371,3504.0,3503.5,0.1424]
[1754132678309,4.864,3504.0,3503.5,0.6374]
[1754132678501,4.864,3504.0,3503.5,1.1054]
[1754132678670,0.493,3504.0,3503.5,1.256994]
[1754132679370,4.371,3504.1,3503.5,0.293994]
[1754132679570,0.9315,3504.0,3503.0,0.495]
[1754132679807,0.9315,3503.9,3503.4,0.1424]
[1754132680011,4.371,3504.1,3503.4,0.1424]
[1754132680170,0.9315,3504.0,3503.4,0.1424]
[1754132680507,0.9315,3503.9,3503.4,0.1424]
[1754132680673,4.371,3504.1,3503.4,0.1424]
[1754132680871,0.9315,3504.0,3503.4,0.1424]
[1754132681211,0.9315,3503.9,3502.4,3.0]
[1754132681398,0.9315,3503.8,3502.8,0.1424]
[1754132681585,0.9315,3503.7,3502.8,0.1424]
[1754132681772,0.55,3504.0,3502.8,0.1424]
[1754132681970,0.9315,3503.6,3502.8,0.1424]
[1754132682303,4.371,3503.5,3503.2,0.1424]
[1754132682705,0.493,3503.4,3503.2,0.1424]
[1754132682915,0.4385,3503.4,3502.7,3.495]
[1754132683125,4.371,3503.5,3503.1,0.1424]
[1754132683318,4.371,3503.5,3503.2,0.963]
[1754132683538,4.371,3503.5,3503.3,0.1424]
[1754132683691,4.371,3503.5,3503.1,8.46025754]
[1754132683692,5.3025,3503.5,3503.1,8.46025754]
[1754132683890,5.3025,3503.5,3503.2,0.1424]
[1754132684588,4.864,3503.5,3503.2,0.1424]
[1754132684788,4.371,3503.5,3503.2,0.1424]
[1754132685124,5.3025,3503.5,3503.2,1.09896575]
[1754132685483,4.8095,3503.5,3503.2,1.09896575]
[1754132685688,0.493,3503.4,3503.2,0.1424]
[1754132686516,4.371,3503.5,3503.2,0.6374]
[1754132687130,4.371,3503.5,3503.2,0.1424]
[1754132687333,4.371,3503.5,3503.3,0.495]
[1754132687494,4.371,3503.5,3503.4,0.1424]
[1754132688184,4.864,3503.5,3503.4,0.1424]
[1754132688390,5.3025,3503.5,3502.8,1.81472254]
[1754132688591,5.3025,3503.5,3503.2,0.1424]
[1754132688820,5.3025,3503.5,3502.9,1.32749801]
[1754132688821,0.9315,3503.4,3503.1,0.1424]
[1754132689738,0.9315,3503.3,3503.1,0.1424]
[1754132690195,0.9315,3503.2,3502.7,0.1424]
[1754132690394,0.9315,3503.2,3502.7,0.6374]
[1754132690743,0.4385,3503.2,3502.8,0.95656575]
[1754132690925,0.9315,3503.1,3502.8,0.95656575]
[1754132691265,0.9315,3503.1,3502.7,0.1424]
[1754132691423,4.371,3503.5,3502.7,0.1424]
[1754132691628,0.9315,3503.0,3502.7,0.1424]
[1754132692363,0.493,3503.0,3502.7,0.1424]
[1754132692957,0.923,3503.0,3502.7,0.1424]
[1754132693859,0.9062,3503.0,3502.7,0.1424]
[1754132694060,4.371,3503.5,3502.7,0.1424]
[1754132694356,0.9062,3502.9,3502.6,0.1424]
[1754132694562,0.9062,3502.9,3502.6,0.50176]
[1754132694860,0.9062,3502.8,3502.7,5.48639162]
[1754132695737,4.375,3503.1,3502.7,5.48639162]
[1754132695738,4.805,3503.1,3502.7,5.48639162]
[1754132695938,5.2812,3503.1,3503.0,5.48639162]
[1754132696526,0.001,3503.3,3503.0,5.48639162]
[1754132696731,4.374,3503.2,3503.0,5.48639162]
[1754132697054,4.84036534,3503.2,3503.0,5.48639162]
[1754132697231,0.4762,3503.1,3503.0,5.48639162]
[1754132697734,0.9062,3503.1,3503.0,5.48639162]
[1754132700427,0.9062,3503.1,3502.7,5.48639162]
[1754132700659,0.9062,3503.0,3502.7,5.48639162]
[1754132701464,0.4762,3503.0,3502.7,5.48639162]
[1754132701930,4.84036534,3503.2,3502.7,5.48639162]
[1754132702130,5.27036534,3503.2,3503.1,5.48639162]
[1754132702339,4.375,3503.2,3503.1,5.48639162]
[1754132702665,4.805,3503.2,3503.1,5.48639162]
[1754132702871,5.2812,3503.2,3503.1,5.48639162]
[1754132703967,0.001,3503.3,3503.1,5.48639162]
[1754132704368,30.4762,3503.2,3502.9,0.1424]
[1754132704567,0.9062,3503.1,3502.9,0.1424]
[1754132704768,4.378,3503.0,3502.9,0.1424]
[1754132704969,5.2842,3503.0,3502.8,5.48639162]
[1754132705158,0.9062,3502.9,3502.8,5.48639162]
[1754132706751,0.9062,3502.9,3502.4,0.1444]
[1754132706953,0.9062,3502.8,3502.5,5.48639162]
[1754132707157,4.377,3502.7,3502.5,5.48639162]
[1754132707542,4.8532,3502.7,3502.5,5.48639162]
[1754132708084,4.377,3502.7,3502.5,5.48639162]
[1754132709349,0.43,3503.0,3502.5,5.48639162]
[1754132709566,4.376,3502.9,3502.8,5.48639162]
[1754132710774,4.376,3502.9,3502.8,5.93759162]
[1754132711597,4.376,3502.9,3502.8,5.48639162]
[1754132715706,5.2822,3502.9,3502.8,5.48639162]
[1754132715871,4.8522,3502.9,3502.8,5.48639162]
[1754132716284,4.376,3502.9,3502.8,5.48639162]
[1754132716599,4.376,3502.9,3502.8,5.93759162]
[1754132716980,4.376,3502.9,3502.8,6.38449162]
[1754132717580,4.372,3502.9,3502.8,7.02294078]
[1754132717930,0.001,3503.3,3502.8,7.02294078]
[1754132718225,0.001,3503.3,3503.2,5.48639162]
[1754132718511,4.372,3503.3,3503.2,5.48639162]
[1754132718713,4.372,3503.3,3503.2,5.08715162]
[1754132718876,4.372,3503.3,3503.2,5.53835162]
[1754132719575,4.372,3503.3,3503.2,5.08715162]
[1754132720676,0.001,3503.3,3503.2,5.08715162]
[1754132720912,4.8522,3503.3,3503.2,5.08715162]
[1754132721111,4.376,3503.3,3503.2,5.08715162]
[1754132722115,0.001,3503.3,3503.2,6.03165162]
[1754132722279,4.375,3503.3,3503.2,6.64905678]
[1754132722617,4.375,3503.3,3503.2,6.03165162]
[1754132724209,4.375,3503.3,3503.2,5.57885162]
[1754132725534,0.001,3503.3,3503.2,6.03165162]
[1754132725746,0.001,3503.3,3503.2,6.17405162]
[1754132727435,0.9203,3504.4,3503.2,6.17405162]
[1754132727605,0.9203,3504.4,3504.1,5.48639162]
[1754132727808,11.238,3504.2,3504.1,5.48639162]
[1754132728208,11.238,3504.2,3504.0,5.48639162]
[1754132729518,6.863,3504.2,3504.0,5.48639162]
[1754132729728,6.863,3504.2,3504.0,5.97809162]
[1754132730039,4.374,3504.1,3504.0,5.93919162]
[1754132730545,4.374,3504.1,3504.0,6.43089162]
[1754132730947,0.4857,3505.0,3504.0,7.08822078]
[1754132731146,0.4857,3505.0,3504.6,5.48639162]
[1754132731147,4.374,3504.9,3504.6,5.48639162]
[1754132731338,4.374,3504.9,3504.0,0.65732916]
[1754132731339,4.374,3504.9,3504.8,5.48639162]
[1754132731661,4.374,3504.9,3504.7,0.4917]
[1754132731662,4.8597,3504.9,3504.5,5.62879162]
[1754132731848,4.374,3504.8,3504.6,0.4917]
[1754132732050,4.374,3504.8,3504.6,0.9445]
[1754132733637,4.374,3504.8,3504.6,0.4917]
[1754132733970,0.4857,3505.1,3504.6,0.4917]
[1754132734142,4.372,3505.0,3504.6,0.4917]
[1754132734322,0.9203,3504.9,3504.5,0.1424]
[1754132734523,0.9203,3504.8,3504.2,0.1424]
[1754132734723,0.9203,3504.7,3504.2,0.1424]
[1754132734983,5.2923,3504.6,3504.2,0.1424]
[1754132735126,4.374,3504.5,3504.2,0.1424]
[1754132735460,5.2943,3504.5,3503.4,6.34426862]
[1754132735620,0.9203,3504.4,3503.5,0.1424]
[1754132735817,0.9203,3504.3,3503.5,0.1424]
[1754132736021,0.9203,3504.2,3503.5,0.1424]
[1754132736254,4.8597,3504.1,3503.5,0.1424]
[1754132736453,4.8597,3504.1,3503.7,5.48639162]
[1754132736654,4.374,3504.1,3503.7,5.48639162]
[1754132736836,0.4857,3504.0,3503.7,5.48639162]
[1754132739256,0.4857,3503.9,3503.7,5.48639162]
[1754132739560,0.4346,3504.0,3503.7,5.48639162]
[1754132739768,0.4857,3503.9,3503.7,5.48639162]
[1754132740453,0.9203,3503.8,3502.8,5.48639162]
[1754132740652,3.0,3504.4,3502.8,0.4917]
[1754132740653,5.2923,3503.7,3502.8,0.4917]
[1754132740858,4.8567,3503.6,3503.0,5.48639162]
[1754132741155,0.4857,3503.5,3503.0,5.48639162]
[1754132741351,0.4346,3503.4,3503.0,5.48639162]
[1754132741670,0.4857,3503.3,3502.8,0.1424]
[1754132741839,15.34839162,3504.4,3502.9,5.48639162]
[1754132741840,4.8076,3503.2,3502.9,5.48639162]
[1754132742044,4.373,3503.1,3502.9,5.48639162]
[1754132745169,4.373,3503.1,3502.5,0.1424]
[1754132745472,0.9203,3503.0,3502.4,5.63079162]
[1754132745632,0.4857,3502.9,3502.4,5.48839162]
[1754132745834,0.4857,3502.8,3502.4,5.48839162]
[1754132746177,4.371,3502.7,3502.4,5.48839162]
[1754132747103,4.371,3502.7,3502.4,5.98009162]
[1754132747249,4.371,3502.7,3502.5,0.4917]
[1754132747446,4.371,3502.7,3502.4,5.48839162]
[1754132747657,3.0,3503.8,3502.4,6.09675078]
[1754132747658,4.371,3502.6,3502.4,6.09675078]
[1754132747866,4.371,3502.6,3502.5,5.97809162]
[1754132748979,4.371,3502.6,3502.5,5.48639162]
[1754132749182,4.371,3502.6,3502.4,5.48839162]
[1754132749545,4.371,3502.6,3502.0,0.4548]
[1754132749546,1.718,3502.3,3502.0,0.002]
[1754132749868,0.9203,3502.5,3502.0,0.002]
[1754132749869,33.6924,3502.1,3502.0,0.002]
[1754132750069,35.15029025,3502.1,3502.0,0.002]
[1754132750263,37.10656911,3502.1,3502.0,0.002]
[1754132751545,42.59296073,3502.1,3502.0,0.002]
[1754132752180,45.76460921,3502.1,3502.0,0.002]